bitfinex-derivatives/quotes_SOLF0:USTF0_20241101
["timestamp","ask_amount","ask_price","bid_price","bid_amount"]
[1730477324295,3.0158,165.85,165.76,2.6687]
[1730477324296,37.68113493,165.94,165.81,37.68113493]
[1730477324488,37.68113493,165.94,165.82,7.7212]
[1730477324687,3.0154,165.88,165.83,3.0161]
[1730477324987,3.0154,165.88,165.82,7.7212]
[1730477325184,3.0154,165.88,165.83,3.0161]
[1730477325790,3.0156,165.86,165.82,7.7212]
[1730477325995,37.68113493,165.92,165.82,7.7212]
[1730477327099,3.0151,165.89,165.84,3.0159]
[1730477327494,37.68113493,165.92,165.82,7.7212]
[1730477327695,3.0151,165.89,165.83,3.016]
[1730477327992,37.68113493,165.92,165.83,3.016]
[1730477328295,6.0266,165.99,165.84,1.3373]
[1730477328497,37.68113493,165.97,165.85,1.3377]
[1730477328800,37.68113493,165.97,165.84,1.3373]
[1730477329000,37.68113493,165.94,165.84,1.3373]
[1730477330401,37.68113493,165.97,165.86,3.0154]
[1730477330901,3.0141,165.95,165.84,39.01843493]
[1730477331091,37.68113493,166.0,165.87,37.68113493]
[1730477331492,37.68113493,165.98,165.84,1.3373]
[1730477331904,3.0143,165.94,165.88,3.0152]
[1730477332202,37.68113493,165.98,165.84,1.3373]
[1730477332390,39.02503493,166.01,165.86,37.68113493]
[1730477332597,3.0141,165.95,165.9,3.0147]
[1730477332812,3.0141,165.95,165.86,37.68113493]
[1730477332813,39.02503493,166.01,165.91,1.3527]
[1730477332994,3.0137,165.97,165.92,1.2934]
[1730477333196,43.44,166.13,165.92,1.2934]
[1730477333197,37.68113493,166.03,165.92,1.2934]
[1730477333798,37.68113493,166.09,165.95,37.68113493]
[1730477334098,3.0124,166.04,165.98,3.0133]
[1730477334495,37.68113493,166.06,165.96,6.34]
[1730477334697,3.013,166.01,165.95,3.0138]
[1730477334904,37.68113493,166.06,165.92,38.97453493]
[1730477335113,37.68113493,166.06,165.93,6.34]
[1730477335605,37.68113493,166.03,165.93,6.34]
[1730477335813,37.68113493,166.0,165.86,37.68113493]
[1730477336103,6.0273,165.97,165.85,1.2871]
[1730477336304,37.68113493,165.95,165.85,1.2871]
[1730477336507,37.68113493,165.92,165.85,1.2871]
[1730477336699,37.68113493,165.95,165.85,1.2871]
[1730477336902,3.015,165.9,165.85,1.2871]
[1730477337106,37.68113493,165.95,165.85,1.2871]
[1730477337402,3.0145,165.92,165.85,1.2871]
[1730477337603,37.68113493,165.95,165.85,1.2871]
[1730477338406,3.0148,165.91,165.85,1.2871]
[1730477338599,37.68113493,165.95,165.85,1.2871]
[1730477339003,3.0147,165.92,165.86,3.0156]
[1730477339203,37.68113493,165.95,165.86,3.0156]
[1730477339405,37.68113493,165.95,165.85,1.2871]
[1730477339903,37.68113493,165.95,165.83,37.68113493]
[1730477340201,37.68113493,165.95,165.82,6.34]
[1730477340202,37.68113493,165.95,165.84,4.3347]
[1730477340604,37.68113493,165.95,165.86,3.0154]
[1730477341001,37.68113493,165.95,165.84,1.3189]
[1730477341708,3.0146,165.92,165.85,3.0156]
[1730477341907,37.68113493,165.95,165.84,1.3189]
[1730477342104,1.2952,165.96,165.84,1.3189]
[1730477342309,38.97633493,165.96,165.84,1.3189]
[1730477342511,3.0148,165.91,165.86,3.0156]
[1730477342713,24.45185111,165.96,165.84,1.3189]
[1730477343415,24.45185111,165.96,165.82,23.15665111]
[1730477343905,24.45185111,165.96,165.81,1.3072]
[1730477343906,1.2952,165.96,165.84,23.15665111]
[1730477344103,1.2952,165.96,165.85,6.32]
[1730477344304,3.0141,165.95,165.88,3.0152]
[1730477344518,1.2952,165.96,165.85,6.32]
[1730477345207,24.45185111,165.96,165.85,6.32]
[1730477345414,3.0146,165.92,165.87,3.0153]
[1730477346012,24.45185111,165.96,165.85,6.32]
[1730477346210,24.45185111,165.96,165.87,3.0154]
[1730477346418,23.15665111,165.96,165.87,3.0154]
[1730477346714,23.15665111,165.99,165.89,3.015]
[1730477346906,23.15665111,165.96,165.85,6.32]
[1730477347103,3.0144,165.93,165.85,9.3357]
[1730477347311,23.15665111,165.9,165.77,27.8234307]
[1730477347510,23.15665111,165.87,165.77,27.8234307]
[1730477347712,23.15665111,165.85,165.77,27.8234307]
[1730477347923,23.15665111,165.82,165.72,4.0185]
[1730477348123,23.15665111,165.85,165.72,4.0185]
[1730477348829,23.15665111,165.82,165.72,2.7014]
[1730477349029,23.15665111,165.82,165.72,5.7194]
[1730477349332,23.15665111,165.82,165.72,2.7014]
[1730477349524,23.15665111,165.79,165.65,23.15665111]
[1730477349725,23.15665111,165.79,165.65,25.88375111]
[1730477350021,3.0177,165.75,165.69,3.0187]
[1730477350220,3.0177,165.75,165.65,25.88375111]
[1730477350221,23.15665111,165.79,165.65,25.88375111]
[1730477350632,3.0176,165.75,165.68,3.0187]
[1730477350832,38.99763973,165.78,165.65,2.7271]
[1730477351022,1.2882,165.78,165.67,37.70943973]
[1730477351218,3.0178,165.74,165.67,40.72833973]
[1730477351424,38.99763973,165.78,165.65,2.7271]
[1730477351830,3.0178,165.75,165.68,3.0187]
[1730477352030,6.32,165.84,165.67,37.70943973]
[1730477352031,37.70943973,165.81,165.67,37.70943973]
[1730477352529,37.70943973,165.78,165.65,2.7271]
[1730477353531,37.70943973,165.8,165.63,3.0196]
[1730477353532,3.0186,165.7,165.63,3.0196]
[1730477353736,37.70943973,165.8,165.59,6.32]
[1730477353737,37.70943973,165.69,165.59,6.32]
[1730477353937,3.0197,165.64,165.59,6.32]
[1730477354234,37.70943973,165.69,165.59,6.32]
[1730477354235,1.3813,165.68,165.59,6.32]
[1730477354427,3.0194,165.66,165.6,3.0202]
[1730477354630,3.0194,165.66,165.59,6.32]
[1730477355031,1.3813,165.68,165.59,6.32]
[1730477355233,37.70943973,165.64,165.49,37.70943973]
[1730477355432,37.70943973,165.64,165.5,2.5619]
[1730477355737,3.0205,165.6,165.5,2.5619]
[1730477356037,37.70943973,165.64,165.5,2.5619]
[1730477356831,3.0207,165.58,165.52,3.0218]
[1730477357040,37.70943973,165.61,165.5,2.5619]
[1730477358337,37.70943973,165.61,165.51,3.022]
[1730477358633,37.70943973,165.58,165.5,2.5619]
[1730477358931,3.0211,165.56,165.49,9.3422]
[1730477359136,37.70943973,165.61,165.49,6.32]
[1730477359339,37.70943973,165.61,165.49,44.02943973]
[1730477359840,37.70943973,165.64,165.49,44.02943973]
[1730477360029,3.0202,165.61,165.54,3.0213]
[1730477360428,3.0202,165.61,165.49,44.02943973]
[1730477360429,3.0197,165.64,165.58,3.0205]
[1730477360637,1.3813,165.68,165.57,37.70943973]
[1730477360823,37.70943973,165.72,165.57,37.70943973]
[1730477361024,37.70943973,165.72,165.58,1.3749]
[1730477361530,3.03317164,165.75,165.58,1.3749]
[1730477361531,37.70943973,165.75,165.68,3.0187]
[1730477361740,39.00513973,165.77,165.65,37.70943973]
[1730477362232,37.70943973,165.69,165.58,1.3749]
[1730477362627,37.70943973,165.69,165.6,3.0202]
[1730477362832,37.70943973,165.66,165.53,6.32]
[1730477363337,37.70943973,165.66,165.58,3.0205]
[1730477363535,37.70943973,165.66,165.52,9.0447]
[1730477363731,1.3608,165.65,165.52,9.0447]
[1730477363931,1.3608,165.65,165.57,3.0207]
[1730477363932,3.02,165.62,165.57,3.0207]
[1730477364338,3.0202,165.61,165.57,3.0207]
[1730477364643,37.70943973,165.63,165.55,3.0211]
[1730477364832,37.70943973,165.63,165.52,9.0447]
[1730477365032,37.70943973,165.63,165.56,3.021]
[1730477365033,3.0205,165.6,165.56,3.021]
[1730477365942,3.0205,165.6,165.55,3.0212]
[1730477366338,3.0203,165.61,165.57,3.0208]
[1730477366833,37.70943973,165.63,165.52,9.0447]
[1730477367145,1.3608,165.65,165.52,9.0447]
[1730477367336,1.3608,165.65,165.52,7.6949]
[1730477367639,3.0203,165.61,165.56,3.021]
[1730477368933,1.3608,165.65,165.53,1.2946]
[1730477369234,37.70943973,165.69,165.54,37.70943973]
[1730477369735,3.0196,165.64,165.54,37.70943973]
[1730477369934,1.3309,165.68,165.54,37.70943973]
[1730477370130,37.70943973,165.71,165.57,37.70943973]
[1730477370641,1.3566,165.7,165.57,23.19439597]
[1730477371738,1.3566,165.7,165.61,3.0201]
[1730477372141,23.19439597,165.69,165.55,23.19439597]
[1730477372440,23.19439597,165.69,165.59,3.0205]
[1730477373035,3.0199,165.63,165.58,3.0206]
[1730477373232,23.19439597,165.66,165.53,1.2946]
[1730477373637,29.51439597,165.69,165.55,23.19439597]
[1730477373837,23.19439597,165.69,165.55,23.19439597]
[1730477374037,3.019,165.68,165.63,3.0196]
[1730477374240,3.019,165.68,165.58,23.19439597]
[1730477374638,1.3566,165.7,165.58,23.19439597]
[1730477374842,3.0191,165.67,165.58,23.19439597]
[1730477375443,23.19439597,165.66,165.52,23.19439597]
[1730477375643,23.19439597,165.66,165.57,3.0208]
[1730477375842,23.19439597,165.66,165.52,25.84009597]
[1730477376043,3.0196,165.64,165.52,25.84009597]
[1730477376232,23.19439597,165.66,165.52,25.84009597]
[1730477376748,3.02,165.62,165.58,3.0205]
[1730477377137,3.02,165.62,165.53,6.3]
[1730477377444,23.19439597,165.69,165.55,23.19439597]
[1730477377643,23.19439597,165.69,165.53,6.3]
[1730477377644,1.3566,165.7,165.57,23.19439597]
[1730477377950,1.3566,165.7,165.65,3.0194]
[1730477377951,3.0189,165.68,165.65,3.0194]
[1730477378450,3.0182,165.72,165.6,29.49439597]
[1730477378748,23.19439597,165.75,165.61,2.596]
[1730477378948,3.0185,165.7,165.67,3.019]
[1730477379241,23.19439597,165.75,165.67,3.019]
[1730477379449,1.3016,165.83,165.61,2.596]
[1730477379450,3.0174,165.76,165.72,3.018]
[1730477379841,23.19439597,165.78,165.65,1.3357]
[1730477380039,7.6016,165.83,165.67,23.19439597]
[1730477380040,23.19439597,165.81,165.67,23.19439597]
[1730477380250,1.3016,165.83,165.69,23.19439597]
[1730477380448,1.3016,165.83,165.7,1.2879]
[1730477380843,1.3016,165.83,165.71,1.3778]
[1730477381045,3.0167,165.8,165.75,3.0175]
[1730477381646,1.3016,165.83,165.71,1.3778]
[1730477381849,1.3016,165.83,165.77,3.0172]
[1730477382153,797.0,166.04,165.75,29.49439597]
[1730477382154,3.0158,165.85,165.75,29.49439597]
[1730477382349,23.19439597,165.89,165.78,3.0171]
[1730477382554,3.0159,165.85,165.78,3.0171]
[1730477382953,26.23904966,165.89,165.78,3.017]
[1730477383142,26.23904966,165.89,165.75,29.49439597]
[1730477383143,3.0163,165.83,165.75,6.3]
[1730477383654,3.0163,165.83,165.77,3.0171]
[1730477384245,3.017,165.79,165.73,3.0179]
[1730477384541,23.19439597,165.77,165.66,2.6916]
[1730477384741,3.0184,165.71,165.66,2.6916]
[1730477384955,23.19439597,165.74,165.66,2.6916]
[1730477385141,23.19439597,165.77,165.66,2.6916]
[1730477385343,3.0175,165.76,165.66,2.6916]
[1730477385544,1.4005,165.78,165.66,2.6916]
[1730477385746,1.4005,165.78,165.66,25.88599597]
[1730477385946,4.4177,165.78,165.72,3.018]
[1730477386159,23.19439597,165.85,165.72,23.19439597]
[1730477386363,1.3897,165.87,165.72,29.49439597]
[1730477386652,1.3897,165.87,165.74,37.66158501]
[1730477386951,3.0164,165.82,165.77,3.0171]
[1730477387158,1.3897,165.87,165.73,1.3008]
[1730477387159,37.66158501,165.85,165.73,1.3008]
[1730477387460,37.66158501,165.85,165.72,6.3]
[1730477387461,40.69955775,165.85,165.72,6.3]
[1730477387648,37.66158501,165.82,165.72,6.3]
[1730477388048,37.66158501,165.8,165.67,1.3008]
[1730477388349,37.66158501,165.77,165.67,1.3008]
[1730477388545,37.66158501,165.77,165.66,2.6916]
[1730477388750,37.66158501,165.74,165.66,1.3529]
[1730477389157,3.0185,165.71,165.64,3.0196]
[1730477389358,1.3392,165.76,165.63,37.66158501]
[1730477389556,1.3392,165.76,165.66,37.66158501]
[1730477389854,3.0178,165.74,165.69,3.0187]
[1730477390051,1.3392,165.76,165.63,37.66158501]
[1730477390451,3.0187,165.7,165.63,37.66158501]
[1730477390752,37.66158501,165.75,165.61,9.0769]
[1730477391958,3.0185,165.71,165.61,9.0769]
[1730477393058,37.66158501,165.75,165.65,3.0192]
[1730477393555,3.0185,165.71,165.65,3.0194]
[1730477393756,37.66158501,165.75,165.65,3.0194]
[1730477394163,3.0185,165.71,165.65,3.0194]
[1730477394359,37.66158501,165.72,165.58,1.3175]
[1730477394561,3.0194,165.66,165.56,2.5833]
[1730477394760,37.66158501,165.66,165.56,2.5833]
[1730477395061,1.3884,165.65,165.56,5.6042]
[1730477395258,3.0201,165.62,165.56,2.5833]
[1730477395767,3.0204,165.6,165.56,2.5833]
[1730477395961,1.3884,165.65,165.56,2.5833]
[1730477396162,1.3884,165.65,165.56,5.6043]
[1730477396362,3.0201,165.62,165.56,2.5833]
[1730477396567,1.3884,165.65,165.56,2.5833]
[1730477396757,37.66158501,165.69,165.56,2.5833]
[1730477396960,3.0194,165.65,165.56,2.5833]
[1730477397557,3.0194,165.65,165.51,1.312]
[1730477397558,37.66158501,165.63,165.51,1.312]
[1730477397756,37.66158501,165.63,165.52,2.6457]
[1730477398660,3.0205,165.6,165.54,3.0214]
[1730477398868,3.0205,165.6,165.52,2.6457]
[1730477399561,3.0205,165.6,165.55,3.0212]
[1730477399956,3.0205,165.6,165.52,2.6457]
[1730477400266,3.0205,165.6,165.55,3.0212]
[1730477400664,37.66158501,165.63,165.52,2.6457]
[1730477401166,3.0203,165.61,165.55,3.0211]
[1730477401560,37.66158501,165.63,165.55,3.0211]
[1730477402161,37.66158501,165.63,165.52,2.6457]
[1730477402362,37.66158501,165.66,165.52,40.30728501]
[1730477402761,1.3772,165.65,165.52,40.30728501]
[1730477402963,3.0201,165.62,165.56,3.0209]
[1730477403365,1.3772,165.65,165.56,3.0209]
[1730477403670,3.0202,165.61,165.56,3.0209]
[1730477404068,3.0201,165.62,165.52,40.30728501]
[1730477404263,1.3772,165.65,165.52,40.30728501]
[1730477404458,1.3772,165.65,165.54,37.66158501]
[1730477404659,37.66158501,165.72,165.57,37.66158501]
[1730477405172,3.0196,165.65,165.6,3.0203]
[1730477405371,6.28,165.71,165.55,37.66158501]
[1730477405566,38.99968501,165.74,165.62,37.66158501]
[1730477405876,1.3381,165.74,165.65,37.66158501]
[1730477406072,43.5,165.86,165.67,37.66158501]
[1730477406073,37.66158501,165.8,165.67,37.66158501]
[1730477406259,3.0175,165.76,165.67,37.66158501]
[1730477406769,37.66158501,165.8,165.67,3.0189]
[1730477406964,3.00676066,165.81,165.64,6.28]
[1730477406965,37.66158501,165.76,165.64,6.28]
[1730477407165,37.66158501,165.74,165.63,2.7282]
[1730477407369,37.66158501,165.74,165.63,5.748]
[1730477407570,37.66158501,165.71,165.59,43.94158501]
[1730477407777,40.66955405,165.74,165.6,2.695]
[1730477408163,40.66955405,165.74,165.55,37.66158501]
[1730477408164,37.66158501,165.68,165.55,37.66158501]
[1730477408670,3.0191,165.67,165.61,3.0201]
[1730477409076,37.66158501,165.71,165.55,37.66158501]
[1730477409377,37.66158501,165.73,165.58,37.66158501]
[1730477409674,37.66158501,165.73,165.59,7.5591]
[1730477409869,3.019,165.68,165.59,7.5591]
[1730477410174,3.019,165.68,165.6,2.6389]
[1730477410373,3.019,165.68,165.62,3.0198]
[1730477410676,3.0187,165.69,165.6,2.6389]
[1730477411079,3.0191,165.67,165.6,2.6389]
[1730477411569,3.0186,165.7,165.62,3.0199]
[1730477411769,37.66158501,165.73,165.6,2.6389]
[1730477411972,37.66158501,165.65,165.57,3.0209]
[1730477412170,37.66158501,165.72,165.55,37.66158501]
[1730477412377,37.66158501,165.72,165.59,37.66158501]
[1730477412572,37.66158501,165.72,165.63,3.0196]
[1730477412775,3.0188,165.69,165.6,25.83511662]
[1730477412972,1.3599,165.75,165.62,23.18791662]
[1730477413177,1.3599,165.75,165.66,3.0191]
[1730477413178,3.0183,165.71,165.66,3.0191]
[1730477413473,1.3599,165.75,165.63,1.323]
[1730477413680,1.3599,165.75,165.65,3.0194]
[1730477413971,3.0185,165.71,165.65,3.0194]
[1730477414172,1.3599,165.75,165.65,3.0194]
[1730477414372,3.0185,165.7,165.65,3.0194]
[1730477414573,3.0185,165.7,165.63,1.323]
[1730477414874,3.0185,165.7,165.66,3.0192]
[1730477416477,3.0185,165.7,165.63,1.323]
[1730477416478,23.18791662,165.74,165.63,3.0197]
[1730477416779,23.18791662,165.74,165.6,25.83511662]
[1730477416780,23.18791662,165.71,165.6,32.11511662]
[1730477417079,3.0186,165.7,165.6,32.11511662]
[1730477417274,1.3624,165.73,165.63,23.18791662]
[1730477417472,23.18791662,165.77,165.63,23.18791662]
[1730477417673,1.3624,165.76,165.66,3.0192]
[1730477418574,3.0184,165.71,165.66,3.0192]
[1730477420387,3.0184,165.71,165.6,8.9272]
[1730477420388,3.0179,165.74,165.69,3.0186]
[1730477420685,23.18791662,165.77,165.65,23.18791662]
[1730477420879,23.18791662,165.79,165.65,23.18791662]
[1730477421082,23.18791662,165.82,165.68,23.18791662]
[1730477421287,1.3326,165.84,165.66,1.3071]
[1730477421288,1.3326,165.84,165.7,23.18791662]
[1730477421480,24.1235436,165.83,165.69,8.9993]
[1730477421780,24.1235436,165.83,165.72,3.0181]
[1730477421781,23.18791662,165.83,165.72,3.0181]
[1730477421982,23.18791662,165.83,165.7,23.18791662]
[1730477422580,23.18791662,165.8,165.7,3.0183]
[1730477423289,26.21266203,165.8,165.69,8.9993]
[1730477424375,1.3326,165.84,165.7,23.18791662]
[1730477424376,23.18791662,165.83,165.7,23.18791662]
[1730477424779,1.3326,165.84,165.73,23.18791662]
[1730477424986,3.0164,165.82,165.73,23.18791662]
[1730477425287,1.3326,165.84,165.73,23.18791662]
[1730477425986,1.3326,165.84,165.7,23.18791662]
[1730477426183,1.3326,165.84,165.7,29.46791662]
[1730477426184,23.18791662,165.83,165.7,29.46791662]
[1730477426376,3.0172,165.78,165.72,3.018]
[1730477426585,3.0172,165.78,165.7,29.46791662]
[1730477427186,23.18791662,165.83,165.7,29.46791662]
[1730477427383,1.3326,165.84,165.7,29.46791662]
[1730477427384,23.18791662,165.8,165.7,6.28]
[1730477427588,26.19654309,165.8,165.7,6.28]
[1730477428184,26.19654309,165.8,165.71,3.0183]
[1730477428384,3.0178,165.74,165.7,6.28]
[1730477429183,26.19654309,165.8,165.7,6.28]
[1730477429380,23.18791662,165.8,165.7,6.28]
[1730477429582,29.46791662,165.83,165.71,3.0182]
[1730477429782,3.0181,165.73,165.7,6.28]
[1730477429978,3.04902788,165.79,165.7,6.28]
[1730477430179,23.18791662,165.81,165.7,6.28]
[1730477430879,3.0177,165.75,165.66,1.3071]
[1730477431083,23.18791662,165.75,165.63,6.28]
[1730477431286,4.33749238,165.74,165.61,25.94491662]
[1730477431482,3.0185,165.71,165.65,3.0193]
[1730477431686,3.0185,165.71,165.62,6.28]
[1730477432485,3.01171017,165.76,165.69,23.18791662]
[1730477432690,1.3584,165.82,165.73,3.0178]
[1730477432894,1.3584,165.82,165.7,2.7153]
[1730477433785,3.0172,165.78,165.7,2.7153]
[1730477433984,3.0172,165.78,165.73,3.0179]
[1730477434184,1.3584,165.82,165.7,2.7153]
[1730477434386,3.0167,165.8,165.72,23.18791662]
[1730477434584,3.0167,165.8,165.75,3.0175]
[1730477434982,3.0167,165.8,165.72,23.18791662]
[1730477434983,23.18791662,165.87,165.72,23.18791662]
[1730477435184,1.3862,165.88,165.74,23.18791662]
[1730477435588,3.0158,165.85,165.8,3.0167]
[1730477436088,1.3862,165.88,165.76,6.24]
[1730477436680,3.0161,165.84,165.78,3.0169]
[1730477436887,1.3862,165.88,165.71,23.18791662]
[1730477436888,23.18791662,165.87,165.71,23.18791662]
[1730477437095,23.18791662,165.84,165.71,23.18791662]
[1730477437396,3.0164,165.82,165.76,3.0173]
[1730477437586,23.18791662,165.87,165.71,23.18791662]
[1730477437794,3.0163,165.83,165.75,3.0176]
[1730477437981,23.18791662,165.87,165.75,3.0176]
[1730477438387,3.0168,165.8,165.75,3.0176]
[1730477439299,29.42791662,165.87,165.71,23.18791662]
[1730477439888,3.0175,165.76,165.69,26.20641662]
[1730477440194,3.0175,165.76,165.67,6.24]
[1730477440495,23.18791662,165.8,165.68,3.0189]
[1730477440496,3.0179,165.74,165.68,3.0189]
[1730477441083,1.3526,165.79,165.68,3.0189]
[1730477441285,1.3526,165.79,165.65,6.24]
[1730477441286,23.18791662,165.77,165.65,6.24]
[1730477441796,23.18791662,165.75,165.65,6.24]
[1730477441994,23.18791662,165.75,165.62,3.9064]
[1730477442184,3.019,165.68,165.62,6.9262]
[1730477442390,23.18791662,165.72,165.62,3.9064]
[1730477442901,23.18791662,165.72,165.63,3.0197]
[1730477442902,3.0189,165.69,165.63,3.0197]
[1730477443895,3.0189,165.68,165.62,6.9262]
[1730477444095,23.18791662,165.69,165.56,23.18791662]
[1730477444295,23.18791662,165.69,165.51,23.18791662]
[1730477444296,3.02,165.62,165.53,6.24]
[1730477444490,23.18791662,165.66,165.56,3.021]
[1730477444798,3.0199,165.63,165.53,6.24]
[1730477445191,23.18791662,165.66,165.57,3.0208]
[1730477445397,23.18791662,165.66,165.51,23.18791662]
[1730477445598,23.18791662,165.66,165.56,3.021]
[1730477446597,3.0198,165.63,165.56,3.021]
[1730477446787,23.18791662,165.64,165.54,3.0214]
[1730477447195,23.18791662,165.64,165.51,29.44791662]
[1730477447496,23.18791662,165.64,165.52,3.0218]
[1730477447693,23.18791662,165.61,165.52,3.0218]
[1730477447991,3.0208,165.58,165.52,3.0218]
[1730477448393,23.18791662,165.61,165.53,3.0216]
[1730477448394,26.23819672,165.61,165.53,3.0216]
[1730477448698,3.0206,165.59,165.53,3.0216]
[1730477448899,29.44791662,165.64,165.49,23.18791662]
[1730477449201,3.0204,165.6,165.55,3.0211]
[1730477449401,3.0204,165.6,165.49,23.18791662]
[1730477450203,3.06569319,165.63,165.52,3.0218]
[1730477450406,23.18791662,165.61,165.47,2.7471]
[1730477450698,3.0209,165.57,165.51,3.0218]
[1730477450907,1.3129,165.6,165.47,2.7471]
[1730477452405,23.18791662,165.58,165.43,23.18791662]
[1730477452702,23.18791662,165.58,165.44,2.7389]
[1730477452888,3.04636268,165.58,165.44,2.7389]
[1730477453092,24.50081662,165.6,165.44,2.7389]
[1730477453303,3.0218,165.52,165.46,3.0227]
[1730477453596,3.0218,165.52,165.44,2.7389]
[1730477453807,23.18791662,165.55,165.44,2.7389]
[1730477453997,23.18791662,165.55,165.45,3.023]
[1730477454196,23.18791662,165.55,165.44,2.7389]
[1730477454593,23.18791662,165.52,165.41,27.8822194]
[1730477455103,3.0147477,165.51,165.41,27.8822194]
[1730477455302,23.18791662,165.52,165.41,27.8822194]
[1730477455805,23.18791662,165.52,165.43,3.0233]
[1730477455806,3.0225,165.49,165.43,3.0233]
[1730477456010,3.02200414,165.51,165.41,27.8822194]
[1730477456215,3.0228,165.47,165.41,30.9059194]
[1730477456507,6.26,165.57,165.41,30.9059194]
[1730477456508,23.18791662,165.49,165.41,27.8822194]
[1730477456700,3.023,165.46,165.41,27.8822194]
[1730477457499,26.16184685,165.49,165.41,27.8822194]
[1730477457500,3.0232,165.45,165.41,27.8822194]
[1730477457706,26.16184685,165.49,165.41,27.8822194]
[1730477457896,23.18791662,165.46,165.36,2.6086]
[1730477458210,26.23400636,165.46,165.36,5.6333]
[1730477458402,26.23400636,165.46,165.36,2.6086]
[1730477459107,26.23400636,165.46,165.32,29.44791662]
[1730477459305,26.23400636,165.46,165.33,2.604]
[1730477459511,3.0236,165.43,165.38,3.0243]
[1730477460308,3.0229,165.47,165.37,23.18791662]
[1730477460508,23.18791662,165.49,165.35,23.18791662]
[1730477461011,3.03344949,165.48,165.35,23.18791662]
[1730477461221,23.18791662,165.54,165.4,23.18791662]
[1730477461512,26.15357094,165.6,165.35,23.18791662]
[1730477461513,23.18791662,165.57,165.45,23.18791662]
[1730477461712,23.18791662,165.57,165.46,2.6942]
[1730477462109,3.03707983,165.58,165.46,2.6942]
[1730477462318,3.03707983,165.58,165.49,23.18791662]
[1730477462604,24.49731662,165.66,165.5,6.22]
[1730477462605,23.18791662,165.63,165.5,6.22]
[1730477462904,3.021,165.57,165.51,3.0219]
[1730477463298,3.021,165.57,165.5,6.22]
[1730477463502,3.0206,165.59,165.53,3.0216]
[1730477463698,23.18791662,165.63,165.5,7.5084]
[1730477464116,23.18791662,165.61,165.5,6.22]
[1730477464302,23.18791662,165.58,165.5,6.22]
[1730477464704,37.75314442,165.58,165.5,6.22]
[1730477464899,3.0214,165.55,165.5,6.22]
[1730477465123,3.0214,165.55,165.49,3.0222]
[1730477465416,37.75314442,165.55,165.46,2.6942]
[1730477466208,3.0223,165.5,165.46,2.6942]
[1730477466406,37.75314442,165.55,165.46,2.6942]
[1730477466807,3.0222,165.5,165.44,3.0232]
[1730477467204,3.0224,165.49,165.43,5.6711]
[1730477467614,37.75314442,165.53,165.43,2.6477]
[1730477467808,3.0227,165.48,165.43,2.6477]
[1730477468008,37.75314442,165.53,165.43,2.6477]
[1730477468412,3.0222,165.5,165.43,2.6477]
[1730477469014,37.75314442,165.53,165.43,2.6477]
[1730477469221,37.75314442,165.6,165.52,3.0217]
[1730477469222,3.0208,165.58,165.52,3.0217]
[1730477469422,37.75314442,165.6,165.44,39.04424442]
[1730477469918,37.75314442,165.57,165.44,39.04424442]
[1730477470309,3.0217,165.53,165.44,39.04424442]
[1730477470514,37.75314442,165.59,165.44,39.04424442]
[1730477470714,37.75314442,165.62,165.47,37.75314442]
[1730477470921,3.0208,165.58,165.52,3.0217]
[1730477471315,3.0208,165.58,165.52,3.0216]
[1730477471518,3.0208,165.58,165.47,37.75314442]
[1730477471711,3.0205,165.59,165.47,37.75314442]
[1730477472118,37.75314442,165.62,165.47,37.75314442]
[1730477472317,3.0209,165.57,165.47,37.75314442]
[1730477472717,6.22,165.63,165.44,1.2911]
[1730477472718,37.75314442,165.59,165.44,1.2911]
[1730477473319,3.0215,165.54,165.49,3.0222]
[1730477473527,37.75314442,165.59,165.44,1.2911]
[1730477474221,37.75314442,165.59,165.44,7.5111]
[1730477474417,3.0221,165.51,165.44,1.2911]
[1730477474615,37.75314442,165.53,165.44,1.2911]
[1730477475012,37.75314442,165.53,165.44,4.3142]
[1730477475215,1.3263,165.55,165.44,1.2911]
[1730477475626,3.0218,165.52,165.47,3.0226]
[1730477476325,1.3263,165.55,165.48,3.0224]